bitfinex/quotes_SOLUSD_20240702
["timestamp","ask_amount","ask_price","bid_price","bid_amount"]
[1719903894900,19.0637,147.63,147.59,6.7754]
[1719903895206,6.7737,147.63,147.59,6.7754]
[1719903895411,19.0637,147.63,147.59,6.7754]
[1719903895612,12.29,147.62,147.59,6.7754]
[1719903896117,0.7416782,147.65,147.58,45.0]
[1719903896304,6.7733,147.64,147.6,45.0]
[1719903896609,19.0628,147.65,147.6,51.7749]
[1719903896791,6.7728,147.65,147.6,51.7749]
[1719903896985,19.0628,147.65,147.6,51.7749]
[1719903897585,6.7738,147.63,147.6,45.0]
[1719903897789,19.0638,147.63,147.59,45.0]
[1719903898012,19.0638,147.63,147.59,51.7754]
[1719903898493,12.29,147.63,147.59,51.7754]
[1719903898691,19.0637,147.63,147.59,51.7754]
[1719903900311,6.7743,147.62,147.59,45.0]
[1719903900518,12.29,147.61,147.56,6.1092]
[1719903900705,6.84841217,147.66,147.57,6.7762]
[1719903900706,12.29,147.6,147.57,6.7762]
[1719903901402,12.29,147.6,147.58,45.0]
[1719903901707,12.29,147.61,147.58,45.0]
[1719903901900,12.29,147.6,147.55,6.7771]
[1719903902098,12.29,147.59,147.56,6.7768]
[1719903902499,19.0659,147.59,147.54,6.7775]
[1719903902703,0.7416782,147.62,147.54,6.7775]
[1719903902704,12.29,147.57,147.54,6.7775]
[1719903902920,12.29,147.57,147.53,6.7782]
[1719903903417,12.29,147.57,147.54,6.7777]
[1719903905003,6.776,147.58,147.54,6.7777]
[1719903905201,12.29,147.57,147.55,45.0]
[1719903905515,12.29,147.56,147.52,6.7784]
[1719903906401,12.29,147.56,147.53,6.7782]
[1719903907409,12.29,147.56,147.52,51.7786]
[1719903907410,19.067,147.56,147.52,51.7786]
[1719903907725,12.29,147.55,147.52,51.7786]
[1719903908900,6.7761,147.58,147.53,6.7781]
[1719903909120,12.29,147.57,147.54,51.7776]
[1719903909298,7.5168782,147.6,147.55,6.7772]
[1719903909614,6.85087095,147.62,147.56,45.0]
[1719903909820,12.29,147.59,147.56,45.0]
[1719903910421,6.7756,147.59,147.56,45.0]
[1719903910723,12.29,147.58,147.56,45.0]
[1719903911127,12.29,147.58,147.55,45.0]
[1719903911303,19.0662,147.58,147.55,45.0]
[1719903911508,19.0662,147.58,147.54,45.0]
[1719903911913,12.29,147.58,147.55,6.7773]
[1719903913301,12.29,147.58,147.56,45.0]
[1719903913501,12.29,147.59,147.56,45.0]
[1719903914203,19.0655,147.59,147.56,45.0]
[1719903915527,12.29,147.58,147.56,45.0]
[1719903916302,19.066,147.58,147.56,45.0]
[1719903917127,12.29,147.58,147.56,45.0]
[1719903917426,12.29,147.58,147.55,51.7773]
[1719903917899,6.7755,147.59,147.55,51.7773]
[1719903918103,19.0655,147.59,147.55,51.7773]
[1719903918507,6.7755,147.59,147.55,51.7773]
[1719903918707,19.0655,147.59,147.55,51.7773]
[1719903918906,6.7751,147.6,147.55,72.1173]
[1719903919111,19.0655,147.59,147.55,72.1173]
[1719903919430,19.0655,147.59,147.55,65.34]
[1719903920024,12.29,147.58,147.55,65.34]
[1719903920230,19.0662,147.58,147.55,45.0]
[1719903920415,6.7769,147.56,147.55,45.0]
[1719903920602,6.7765,147.57,147.55,45.0]
[1719903920803,19.066,147.58,147.55,45.0]
[1719903921706,12.29,147.58,147.55,45.0]
[1719903922632,12.29,147.58,147.55,51.7772]
[1719903923016,12.29,147.58,147.55,45.0]
[1719903923219,6.7787,147.52,147.51,8.34e-05]
[1719903923527,97.638,147.56,147.39,100.0]
[1719903923528,21.9524,147.5,147.39,100.0]
[1719903923838,21.9524,147.5,147.39,106.7844]
[1719903923839,6.7829,147.43,147.39,106.7844]
[1719903924012,6.7829,147.43,147.39,100.0]
[1719903924333,6.7824,147.44,147.41,100.0]
[1719903924630,6.782,147.45,147.41,100.0]
[1719903924926,6.7816,147.46,147.41,106.7837]
[1719903925129,6.7819,147.45,147.41,100.0]
[1719903925334,6.7829,147.43,147.39,100.0]
[1719903925504,12.29,147.42,147.39,100.0]
[1719903925715,12.29,147.41,147.39,100.0]
[1719903926131,12.29,147.4,147.39,100.0]
[1719903926315,0.7416782,147.46,147.39,100.0]
[1719903926522,12.29,147.4,147.39,106.7846]
[1719903927320,0.7416782,147.48,147.41,100.0]
[1719903927527,12.29,147.43,147.41,106.7833]
[1719903927721,6.7815,147.46,147.41,106.7833]
[1719903928126,31.571,147.47,147.42,6.7832]
[1719903928526,7.5231782,147.46,147.41,106.7837]
[1719903929315,7.5236782,147.45,147.4,23.7437]
[1719903929617,6.782,147.45,147.4,23.7437]
[1719903930247,6.7819,147.45,147.39,100.0]
[1719903930839,7.5231782,147.46,147.41,6.7837]
[1719903931143,6.7825,147.44,147.39,106.7843]
[1719903931442,6.7819,147.45,147.4,6.7841]
[1719903932040,7.5231782,147.46,147.41,6.7835]
[1719903932338,0.7416782,147.46,147.42,6.7832]
[1719903932546,7.5222782,147.48,147.43,6.7824]
[1719903932844,0.7416782,147.48,147.42,16.9578]
[1719903933022,6.7819,147.46,147.42,16.9578]
[1719903933540,6.7815,147.46,147.42,16.9578]
[1719903934530,25.5316782,147.48,147.42,16.9578]
[1719903934923,32.3122782,147.48,147.43,6.7827]
[1719903935453,0.7416782,147.49,147.45,6.7818]
[1719903935621,7.5220782,147.49,147.44,6.7823]
[1719903935943,0.7416782,147.49,147.44,6.7823]
[1719903936737,6.7806,147.48,147.44,23.7377]
[1719903937128,7.5218782,147.49,147.44,23.7377]
[1719903937323,7.5218782,147.49,147.45,6.7818]
[1719903937945,7.5218782,147.49,147.44,23.7376]
[1719903938248,6.7806,147.48,147.44,23.7376]
[1719903939452,7.5218782,147.49,147.44,23.7376]
[1719903939751,6.7806,147.48,147.44,23.7376]
[1719903940344,6.7806,147.48,147.47,1.5058501]
[1719903946653,31.5706,147.48,147.47,1.5058501]
[1719903947152,42.4839782,147.48,147.39,6.7843]
[1719903947353,90.50286708,147.48,147.36,0.8406834]
[1719903947533,16.47053538,147.47,147.39,6.7847]
[1719903947731,12.4,147.41,147.39,6.7847]
[1719903947933,12.4,147.41,147.4,6.7842]
[1719903948650,12.4,147.42,147.4,6.7842]
[1719903949153,6.7842,147.4,147.36,0.8406834]
[1719903949360,12.4,147.4,147.36,100.8406834]
[1719903949566,0.7416782,147.44,147.36,121.1806834]
[1719903949739,12.4,147.42,147.4,6.7839]
[1719903950050,12.4,147.41,147.39,6.7846]
[1719903950556,0.7416782,147.43,147.4,6.7842]
[1719903950759,12.4,147.41,147.4,6.7842]
[1719903950959,0.7416782,147.46,147.42,6.7832]
[1719903951251,21.9235,147.42,147.36,0.8406834]
[1719903951431,12.4,147.39,147.36,0.8406834]
[1719903951636,19.5028465,147.45,147.36,100.8406834]
[1719903951954,12.4,147.41,147.38,100.0]
[1719903952133,12.4,147.41,147.39,6.7846]
[1719903952656,12.4,147.41,147.38,100.0]
[1719903953032,7.5241782,147.44,147.38,100.0]
[1719903953253,12.4,147.41,147.36,13.2406834]
[1719903953431,12.4,147.38,147.36,0.8406834]
[1719903953639,12.4,147.37,147.36,0.8406834]
[1719903954357,6.7847,147.39,147.36,0.8406834]
[1719903954653,12.4,147.37,147.36,0.8406834]
[1719903955042,19.1856,147.37,147.36,0.8406834]
[1719903955246,39.1856,147.37,147.36,0.8406834]
[1719903955648,45.8266,147.37,147.36,0.8406834]
[1719903955851,95.4266,147.37,147.36,0.8406834]
[1719903956045,25.8266,147.37,147.36,0.8406834]
[1719903956241,6.7856,147.37,147.36,0.8406834]
[1719903956440,26.7856,147.37,147.36,0.8406834]
[1719903956641,39.1856,147.37,147.36,0.8406834]
[1719903957661,88.7856,147.37,147.36,0.8406834]
[1719903958738,26.7856,147.37,147.36,0.8406834]
[1719903958936,9.33546759,147.38,147.36,0.8406834]
[1719903959137,19.1856,147.37,147.36,0.8406834]
[1719903959564,12.4,147.37,147.36,0.8406834]
[1719903959756,6.7852,147.38,147.36,0.8406834]
[1719903959951,12.4,147.37,147.36,0.8406834]
[1719903960344,19.1856,147.37,147.36,0.8406834]
[1719903960965,51.5856,147.37,147.36,0.8406834]
[1719903961460,45.69924663,147.37,147.36,0.8406834]
[1719903962567,20.89924663,147.37,147.36,0.8406834]
[1719903962766,33.29924663,147.37,147.36,0.8406834]
[1719903963079,82.89924663,147.37,147.36,0.8406834]
[1719903963443,20.89924663,147.37,147.36,0.8406834]
[1719903963644,82.89924663,147.37,147.36,0.8406834]
[1719903964780,33.29924663,147.37,147.36,0.8406834]
[1719903964945,19.1856,147.37,147.36,0.8406834]
[1719903965150,6.7856,147.37,147.36,0.8406834]
[1719903965362,19.1856,147.37,147.36,0.8406834]
[1719903966458,12.4,147.37,147.36,0.8406834]
[1719903966867,6.7853,147.38,147.36,0.8406834]
[1719903967063,19.1856,147.37,147.36,0.8406834]
[1719903967775,6.7853,147.38,147.36,0.8406834]
[1719903967949,12.4,147.37,147.36,0.8406834]
[1719903968477,6.7853,147.38,147.36,0.8406834]
[1719903968643,12.4,147.37,147.36,0.8406834]
[1719903969652,6.7854,147.38,147.36,0.8406834]
[1719903969959,12.4,147.37,147.36,0.8406834]
[1719903970465,19.1856,147.37,147.36,0.8406834]
[1719903970774,12.4,147.37,147.36,0.8406834]
[1719903971070,17.6971782,147.45,147.36,133.6506834]
[1719903971246,6.7825,147.44,147.39,6.7846]
[1719903971447,12.4,147.42,147.4,6.7841]
[1719903972072,0.7416782,147.46,147.41,6.7835]
[1719903972263,0.7416782,147.48,147.41,16.9589]
[1719903972459,12.4,147.43,147.41,16.9589]
[1719903972672,12.4,147.43,147.41,23.7425]
[1719903973057,12.4,147.44,147.41,23.7425]
[1719903974178,19.182,147.45,147.41,23.7425]
[1719903974579,12.4,147.44,147.41,16.9589]
[1719903974758,12.4,147.44,147.41,23.7426]
[1719903975378,12.4,147.44,147.41,16.9589]
[1719903975755,12.4,147.43,147.41,16.9589]
[1719903976249,12.4,147.43,147.4,15.4967]
[1719903976455,12.4,147.43,147.4,22.2809]
[1719903977376,6.782,147.45,147.41,6.7836]
[1719903977571,12.4,147.42,147.4,15.4967]
[1719903978254,12.4,147.42,147.4,22.2807]
[1719903978556,12.4,147.42,147.36,0.8406834]
[1719903978557,12.4,147.41,147.38,6.7848]
[1719903978765,12.4,147.41,147.39,6.7847]
[1719903979155,12.4,147.41,147.37,6.7854]
[1719903979574,17.6956782,147.46,147.4,6.7839]
[1719903979575,6.7822,147.45,147.4,6.7839]
[1719903979779,12.4,147.42,147.4,6.7839]
[1719903979984,6.7822,147.45,147.41,6.7837]
[1719903980277,12.4,147.43,147.39,16.9615]
[1719903980578,12.4,147.43,147.39,23.746]
[1719903981283,12.4,147.43,147.4,6.7842]
[1719903981749,6.7825,147.44,147.4,6.7842]
[1719903981954,12.4,147.43,147.4,6.7842]
[1719903983760,12.4,147.43,147.39,23.7461]
[1719903984185,16.7549782,147.42,147.36,0.8406834]
[1719903984481,6.7856,147.37,147.36,0.8406834]
[1719903984886,19.1856,147.37,147.36,0.8406834]
[1719903985077,0.7416782,147.4,147.36,0.8406834]
[1719903985390,19.1856,147.37,147.36,0.8406834]
[1719903986085,12.4,147.37,147.36,0.8406834]
[1719903986270,19.1856,147.37,147.36,0.8406834]
[1719903988872,6.7856,147.37,147.36,0.8406834]
[1719903989077,19.1856,147.37,147.36,0.8406834]
[1719903990985,6.7856,147.37,147.36,0.8406834]
[1719903991293,6.7853,147.38,147.36,0.8406834]
[1719903991483,6.7853,147.38,147.36,8.34e-05]
[1719903991484,30.4441782,147.37,147.36,8.34e-05]
[1719903991662,56.8963902,147.37,147.36,8.34e-05]
[1719903992768,6.7889,147.3,147.25,6.791]
[1719903992978,6.7889,147.3,147.23,21.9445]
[1719903992979,12.4,147.3,147.23,21.9445]
[1719903993183,6.7897,147.29,147.25,16.9771]
[1719903993385,12.4,147.3,147.25,16.9771]
[1719903993564,19.1894,147.29,147.24,19.1915]
[1719903994186,12.4,147.3,147.25,6.7907]
[1719903994388,19.1891,147.3,147.26,23.7666]
[1719903994594,12.4,147.3,147.26,22.7666]
[1719903994775,6.788,147.32,147.27,6.7901]
[1719903994973,6.7875,147.33,147.29,6.7892]
[1719903995182,12.4,147.32,147.29,6.7892]
[1719903995373,12.4,147.28,147.24,6.7915]
[1719903995568,6.7889,147.3,147.25,6.791]
[1719903995768,0.7416782,147.32,147.25,6.791]
[1719903995974,6.7893,147.3,147.25,6.791]
[1719903996199,0.7416782,147.29,147.23,6.792]
[1719903996498,6.7893,147.29,147.24,6.7915]
[1719903997176,6.7889,147.3,147.26,6.7905]
[1719903997377,6.7888,147.3,147.26,6.7906]
[1719903998109,6.7895,147.29,147.21,100.8406834]
[1719903998300,0.7416782,147.32,147.27,6.7901]
[1719903998480,34.25106963,147.33,147.27,16.9749]
[1719903998809,6.7884,147.31,147.27,23.7651]
[1719903998988,6.788,147.32,147.27,23.7651]
[1719903999187,7.5296782,147.32,147.27,23.7651]
[1719903999908,6.7893,147.29,147.21,100.8406834]
[1719904000082,6.7902,147.28,147.24,6.7915]
[1719904000276,6.7902,147.27,147.23,16.9794]
[1719904000504,6.7902,147.27,147.23,23.7714]
[1719904000683,6.7898,147.28,147.24,6.7915]
[1719904001002,6.7898,147.28,147.23,23.7713]
[1719904001403,0.7416782,147.27,147.21,0.8406834]
[1719904001580,6.7907,147.26,147.22,6.7924]
[1719904001775,6.7903,147.27,147.22,6.7924]
[1719904002201,0.7416782,147.28,147.21,17.8226834]
[1719904002410,6.7915,147.25,147.21,17.8226834]
[1719904002781,0.7416782,147.28,147.21,17.8226834]
[1719904002977,6.7903,147.27,147.22,6.7925]
[1719904003278,6.7893,147.29,147.25,6.7911]
[1719904003497,6.7889,147.3,147.25,6.7911]
[1719904003804,6.7898,147.28,147.23,23.7714]
[1719904004104,6.7898,147.28,147.24,6.7916]
[1719904004680,15.41372518,147.32,147.27,6.7901]
[1719904004881,6.7887,147.31,147.27,16.9751]
[1719904005095,15.41362518,147.32,147.27,23.7649]
[1719904005304,8.62572518,147.32,147.27,23.7649]
[1719904005488,6.7889,147.3,147.26,6.7907]
[1719904005692,6.7885,147.31,147.26,6.7907]
[1719904005898,6.7885,147.31,147.26,23.7669]
[1719904006104,6.7889,147.3,147.26,23.7669]
[1719904006414,0.7416782,147.29,147.21,17.8227834]
[1719904007510,33.4164782,147.29,147.21,17.8227834]
[1719904007807,6.7903,147.27,147.22,6.7924]
[1719904008396,6.7903,147.27,147.23,6.792]
[1719904008797,6.7903,147.27,147.22,6.7924]
[1719904008997,6.7903,147.27,147.23,6.7919]
[1719904009514,6.7908,147.26,147.21,0.8406834]
[1719904009814,6.7903,147.27,147.22,6.7925]
[1719904010212,7.5314782,147.28,147.23,6.7917]
[1719904010809,0.7416782,147.28,147.23,6.7917]
[1719904011006,7.5317782,147.28,147.24,6.7915]
[1719904011414,7.5317782,147.28,147.23,6.7919]
[1719904011789,7.5317782,147.28,147.24,6.7916]
[1719904011990,6.7901,147.28,147.24,6.7916]
[1719904012189,6.7901,147.28,147.24,16.9782]
[1719904012190,6.7898,147.28,147.24,16.9782]
[1719904012608,22.4903,147.29,147.24,16.9782]
[1719904012810,14.75133588,147.3,147.24,16.9782]
[1719904013116,6.7898,147.28,147.24,23.7696]
[1719904013318,7.5310782,147.29,147.24,23.7696]
[1719904013622,15.49301408,147.3,147.25,6.7911]
[1719904013805,8.70401408,147.3,147.24,23.7696]
[1719904013992,6.7896,147.29,147.24,23.7696]
[1719904014501,6.7896,147.29,147.25,6.7911]
[1719904015013,6.7889,147.3,147.24,16.9782]
[1719904015219,0.7416782,147.31,147.26,23.7669]
[1719904015396,6.7891,147.3,147.26,16.9763]
[1719904015903,6.7893,147.29,147.26,16.9763]
[1719904016411,6.7893,147.29,147.25,6.791]
[1719904016601,6.789,147.3,147.25,6.791]
[1719904016793,6.7894,147.29,147.25,6.791]
[1719904017799,6.7894,147.29,147.25,19.211]
[1719904017998,7.5312782,147.29,147.25,23.7683]
[1719904018202,6.7903,147.27,147.24,12.42]
[1719904018514,0.7416782,147.28,147.23,12.42]
[1719904018714,13.1616782,147.28,147.23,12.42]
[1719904018900,0.7416782,147.27,147.21,0.8406834]
[1719904019105,6.7915,147.25,147.22,12.42]
[1719904019299,6.7915,147.25,147.21,0.8406834]
[1719904019498,6.7915,147.25,147.21,7.6335834]
[1719904019724,6.7908,147.26,147.22,12.42]
[1719904019921,6.7912,147.25,147.22,12.42]
[1719904020116,6.791,147.26,147.21,24.6153834]
[1719904020312,6.791,147.26,147.22,19.2124]
[1719904020702,12.42,147.28,147.23,16.9793]
[1719904021010,13.1616782,147.29,147.24,19.2112]
[1719904021310,19.9509782,147.29,147.25,6.791]
[1719904021507,12.42,147.29,147.25,6.791]
[1719904021902,0.7416782,147.29,147.24,12.42]
[1719904022096,24.56584075,147.33,147.21,13.2606834]
[1719904022097,6.7898,147.28,147.25,16.9775]
[1719904022317,6.7898,147.28,147.23,12.42]
[1719904022501,6.7898,147.28,147.24,6.7913]
[1719904022703,6.7898,147.28,147.24,12.42]
[1719904023201,19.2093,147.29,147.24,19.2111]
[1719904023512,0.7416782,147.28,147.24,19.2111]
[1719904023700,6.7897,147.28,147.24,19.2111]
[1719904024717,19.2094,147.29,147.24,19.2111]
[1719904024918,19.2094,147.29,147.25,6.7911]
[1719904025216,6.789,147.3,147.26,6.7906]
[1719904025409,6.789,147.3,147.26,19.2106]
[1719904025802,19.9500782,147.31,147.26,12.42]
[1719904026013,6.789,147.3,147.26,19.2105]
[1719904026209,6.789,147.3,147.26,12.42]
[1719904026531,6.789,147.3,147.25,19.211]
[1719904026830,6.789,147.3,147.26,6.7906]
[1719904027026,6.94498044,147.32,147.24,15.2022]
[1719904027324,13.73328044,147.32,147.28,6.7896]
[1719904027523,13.73328044,147.32,147.29,6.7892]
[1719904027524,6.94498044,147.32,147.29,6.7892]
[1719904027822,13.73308044,147.32,147.28,6.7896]
[1719904028034,6.7884,147.31,147.27,6.7902]
[1719904028531,26.89465864,147.32,147.26,29.3961]
[1719904029211,6.7885,147.31,147.27,6.7901]
[1719904030410,31.35364075,147.33,147.29,6.7893]
[1719904030611,12.42,147.32,147.28,16.9737]
[1719904031121,6.788,147.32,147.28,16.9737]
[1719904031504,6.7884,147.31,147.27,19.2098]
[1719904032703,6.7889,147.3,147.26,6.7906]
[1719904033227,6.7889,147.3,147.27,12.42]
[1719904033434,6.7884,147.31,147.27,19.2101]
[1719904034524,6.789,147.3,147.26,6.7906]
[1719904034832,6.7885,147.31,147.27,19.2102]
[1719904035409,7.5297782,147.32,147.27,19.2102]
[1719904035614,7.5297782,147.32,147.28,6.7897]
[1719904037042,6.7881,147.32,147.28,19.2097]
[1719904038335,6.7885,147.31,147.28,12.42]
[1719904039042,6.7879,147.32,147.28,12.42]
[1719904039628,6.7879,147.32,147.28,19.2097]
[1719904039928,6.7879,147.32,147.28,19.2096]
[1719904040253,9.08354075,147.33,147.29,19.2092]
[1719904040850,9.08354075,147.33,147.29,12.42]
[1719904041018,6.7879,147.32,147.29,12.42]
[1719904041528,9.08364075,147.33,147.29,12.42]
[1719904042245,2.29604075,147.33,147.3,12.42]
[1719904042455,6.7875,147.33,147.3,12.42]
[1719904043052,6.7875,147.33,147.29,36.1821]
[1719904044549,19.2071,147.34,147.29,36.1821]
[1719904044726,18.7071,147.34,147.29,36.1821]
[1719904044929,18.7071,147.34,147.3,6.7888]
[1719904045350,11.92,147.34,147.29,29.393]
[1719904045656,11.92,147.34,147.3,6.7885]
[1719904045950,26.15158044,147.35,147.3,19.2085]
[1719904046242,6.7871,147.34,147.3,19.2085]
[1719904046451,26.15168044,147.35,147.31,6.7883]
[1719904047247,6.787,147.34,147.3,19.2087]
[1719904047738,6.7866,147.35,147.31,6.7883]
[1719904047921,19.2066,147.35,147.31,6.7883]
[1719904048245,12.42,147.35,147.29,16.973]
[1719904048427,12.42,147.35,147.3,12.42]
[1719904048627,12.42,147.35,147.31,19.208]
[1719904048628,6.7866,147.35,147.31,19.208]
[1719904048823,6.7872,147.34,147.31,12.42]
[1719904049028,19.2072,147.34,147.29,29.393]
[1719904049537,19.2072,147.34,147.3,6.7884]
[1719904049737,12.42,147.34,147.31,6.7883]
[1719904050039,7.5282782,147.35,147.29,29.393]
[1719904050040,0.7416782,147.35,147.29,29.393]
[1719904050243,13.1616782,147.36,147.32,16.9696]
[1719904050553,6.7865,147.35,147.32,16.9696]
[1719904051055,19.2065,147.35,147.32,16.9696]
[1719904051247,19.2065,147.35,147.31,6.7882]
[1719904051848,12.42,147.35,147.33,6.7874]
[1719904052042,12.42,147.36,147.3,12.42]
[1719904052238,19.2062,147.36,147.32,6.7876]
[1719904054225,20.0,147.35,147.32,6.7876]
[1719904056956,20.0,147.35,147.33,6.7874]
[1719904057557,20.0,147.35,147.31,29.3905]
[1719904057850,20.0,147.35,147.32,6.7876]
[1719904059536,6.7875,147.33,147.28,23.763]
[1719904059858,6.788,147.32,147.28,23.763]
[1719904060026,19.2076,147.33,147.28,23.763]
[1719904060228,6.7871,147.34,147.28,29.3937]
[1719904060430,26.7875,147.33,147.29,19.2092]
[1719904060655,20.0,147.33,147.29,19.2092]
[1719904060863,20.0,147.33,147.3,29.3918]
[1719904061042,20.0,147.34,147.3,29.3918]
[1719904061250,26.787,147.34,147.3,36.1803]
[1719904061451,39.207,147.34,147.3,23.7603]
[1719904061759,20.0,147.34,147.31,6.7882]
[1719904062062,20.0,147.34,147.3,36.1806]
[1719904062443,20.0,147.34,147.31,6.7882]
[1719904062636,20.0,147.34,147.22,26.4116]
[1719904062637,6.7894,147.29,147.22,26.4116]
[1719904062839,12.42,147.3,147.24,12.42]
[1719904063041,32.42,147.29,147.24,12.42]
[1719904063245,6.7904,147.27,147.21,117.1249834]
[1719904063452,6.7897,147.28,147.23,12.42]
[1719904063952,32.42,147.29,147.23,12.42]
[1719904064158,32.42,147.29,147.24,12.42]
[1719904064456,39.2094,147.29,147.24,12.42]
[1719904064636,20.0,147.29,147.24,12.42]
[1719904065160,32.42,147.29,147.24,12.42]
[1719904065359,32.42,147.29,147.21,137.5349834]
[1719904065360,39.2094,147.29,147.21,137.5349834]
[1719904065559,39.2094,147.29,147.24,12.42]
[1719904065740,26.7894,147.29,147.24,12.42]
[1719904066058,20.0,147.29,147.25,12.42]
[1719904066241,28.95936349,147.3,147.25,12.42]
[1719904066760,28.95936349,147.3,147.21,149.9549834]
[1719904067054,6.7893,147.29,147.21,187.2149834]
[1719904068360,12.42,147.29,147.21,37.5349834]
[1719904068554,19.2094,147.29,147.24,12.42]
[1719904068742,28.95926349,147.3,147.25,12.42]
[1719904068943,16.53926349,147.3,147.25,12.42]
[1719904069241,28.95926349,147.3,147.25,12.42]
[1719904069560,16.53926349,147.3,147.26,12.42]
[1719904069771,28.95926349,147.3,147.25,12.42]
[1719904070241,22.17046349,147.3,147.25,12.42]
[1719904070439,22.91214169,147.3,147.25,12.42]
[1719904070669,29.70104169,147.3,147.25,12.42]
[1719904071038,29.70104169,147.3,147.21,187.2149834]
[1719904071656,28.95936349,147.3,147.21,187.2149834]
[1719904071857,12.42,147.28,147.21,17.1249834]
[1719904072045,19.9512782,147.29,147.24,12.42]
[1719904072961,12.42,147.29,147.24,12.42]
[1719904073154,13.1616782,147.29,147.24,12.42]
[1719904073551,10.49214169,147.3,147.24,12.42]
[1719904073755,12.42,147.29,147.24,12.42]
[1719904073950,9.75046349,147.3,147.24,12.42]
[1719904074155,22.17046349,147.3,147.25,12.42]
[1719904074665,9.75046349,147.3,147.25,12.42]
[1719904074869,12.42,147.31,147.21,149.9549834]
[1719904075167,12.42,147.31,147.26,12.42]
[1719904076890,12.42,147.31,147.21,149.9549834]
[1719904077164,12.42,147.31,147.21,187.2149834]
[1719904078665,0.7416782,147.32,147.23,120.41]
[1719904079074,12.42,147.31,147.23,120.41]
[1719904079774,0.7416782,147.32,147.23,120.41]
[1719904079975,12.42,147.31,147.23,100.0]
[1719904080178,13.1616782,147.3,147.23,100.0]
[1719904080977,0.7416782,147.29,147.21,166.8049834]
[1719904081179,19.9509782,147.29,147.21,166.8049834]
[1719904081362,12.42,147.29,147.21,166.8049834]
[1719904081670,12.42,147.3,147.21,166.8049834]
[1719904081980,0.7416782,147.29,147.21,17.1249834]
[1719904082157,12.42,147.28,147.21,17.1249834]
[1719904082352,0.7416782,147.27,147.23,12.42]
[1719904082556,12.42,147.26,147.21,0.8406834]
[1719904082867,13.1616782,147.26,147.21,13.2606834]
[1719904083062,15.9207,147.27,147.22,12.42]
[1719904083264,29.0823782,147.27,147.22,12.42]
[1719904083662,16.6623782,147.27,147.21,0.8406834]
[1719904083853,16.6623782,147.27,147.22,12.42]
[1719904084276,16.6623782,147.27,147.21,0.8406834]
[1719904084577,29.0823782,147.27,147.22,12.42]
[1719904084779,15.9207,147.27,147.23,12.42]
[1719904086973,16.6623782,147.27,147.24,12.42]
[1719904087276,15.9207,147.27,147.24,12.42]
[1719904087574,0.7416782,147.26,147.21,0.8406834]
[1719904087872,16.6623782,147.27,147.23,12.42]
[1719904088564,15.9207,147.27,147.24,12.42]
[1719904088765,6.0496,147.28,147.24,12.42]
[1719904090182,6.0496,147.28,147.25,12.42]
[1719904090551,0.7416782,147.3,147.25,12.42]
[1719904090749,17.0029782,147.31,147.21,233.6706834]
[1719904090953,36.2113782,147.31,147.21,170.9306834]
[1719904091171,29.4229782,147.31,147.21,170.9306834]
[1719904091370,16.2613,147.31,147.27,12.42]
[1719904092176,23.0497,147.31,147.26,12.42]
[1719904092565,23.0497,147.31,147.27,12.42]
[1719904093167,23.0497,147.31,147.22,100.0]
[1719904093487,6.7891,147.3,147.26,12.42]
[1719904093783,35.4698,147.31,147.26,12.42]
[1719904094474,16.2613,147.31,147.27,12.42]